[Event "Titled Tuesday Blitz August 08 Late 2023"]
[White "brm72"]
[Black "Prithu Gupta"]
[BlackFideId "46618546"]
[WhiteElo "2545"]
[BlackElo "2486"]
[Result "0-1"]
[Round "10"]
[TimeControl "180+1"]
[Date "2023.08.08"]
[WhiteClock "0:00:10"]
[BlackClock "0:00:36"]
[Board "37"]

1. e4 {[%clk 0:03:00]}  e5 {[%clk 0:02:59]} 2. Nf3 {[%clk 0:03:00]}  Nc6 {[%clk 0:02:59]} 3. d4 {[%clk 0:03:00]}  exd4 {[%clk 0:02:59]} 4. Nxd4 {[%clk 0:03:01]}  Bc5 {[%clk 0:02:53]} 5. Nb3 {[%clk 0:03:01]}  Bb6 {[%clk 0:02:53]} 6. Qe2 {[%clk 0:03:02]}  d6 {[%clk 0:02:53]} 7. Nc3 {[%clk 0:03:01]}  Nge7 {[%clk 0:02:53]} 8. Be3 {[%clk 0:03:00]}  Be6 {[%clk 0:02:53]} 9. O-O-O {[%clk 0:02:59]}  Qd7 {[%clk 0:02:53]} 10. g3 {[%clk 0:03:00]}  O-O-O {[%clk 0:02:53]} 11. Bg2 {[%clk 0:03:00]}  f5 {[%clk 0:02:53]} 12. Bxb6 {[%clk 0:02:52]}  axb6 {[%clk 0:02:52]} 13. Rhe1 {[%clk 0:02:53]}  Rde8 {[%clk 0:02:32]} 14. Kb1 {[%clk 0:02:35]}  Rhf8 {[%clk 0:02:31]} 15. f4 {[%clk 0:02:34]}  fxe4 {[%clk 0:02:27]} 16. Qxe4 {[%clk 0:02:34]}  Bg4 {[%clk 0:02:24]} 17. Qa4 {[%clk 0:02:14]}  Kb8 {[%clk 0:02:22]} 18. Rc1 {[%clk 0:01:54]}  d5 {[%clk 0:02:09]} 19. Nb5 {[%clk 0:01:52]}  Bh3 {[%clk 0:01:54]} 20. Bh1 {[%clk 0:01:48]}  Nc8 {[%clk 0:01:44]} 21. Qa3 {[%clk 0:01:12]}  Rxe1 {[%clk 0:01:37]} 22. Rxe1 {[%clk 0:01:12]}  Re8 {[%clk 0:01:18]} 23. Rxe8 {[%clk 0:01:04]}  Qxe8 {[%clk 0:01:19]} 24. Bxd5 {[%clk 0:01:04]}  Qe1+ {[%clk 0:01:19]} 25. Nc1 {[%clk 0:01:04]}  Nb4 {[%clk 0:01:09]} 26. Bg8 {[%clk 0:00:46]}  Bf5 {[%clk 0:01:07]} 27. Bb3 {[%clk 0:00:43]}  c6 {[%clk 0:00:59]} 28. Nd4 {[%clk 0:00:41]}  Nd6 {[%clk 0:00:42]} 29. Nxf5 {[%clk 0:00:38]}  Ne4 {[%clk 0:00:41]} 30. Qxb4 {[%clk 0:00:16]}  Qxb4 {[%clk 0:00:41]} 31. c3 {[%clk 0:00:16]}  Qf8 {[%clk 0:00:37]} 32. Nd4 {[%clk 0:00:16]}  c5 {[%clk 0:00:36]} 33. Ne6 {[%clk 0:00:16]}  Qf5 {[%clk 0:00:36]} 34. Nxg7 {[%clk 0:00:12]}  Nd2+ {[%clk 0:00:35]} 35. Ka1 {[%clk 0:00:10]}  Qb1# {[%clk 0:00:36]} 0-1


[Site "https://www.chess.com"]

[Event "Titled Tuesday Blitz August 08 Late 2023"]
[White "Aradhya, Garg"]
[Black "Bettalli, Francesco"]
[WhiteFideId "25006746"]
[BlackFideId "2816453"]
[WhiteElo "2726"]
[BlackElo "2537"]
[Result "1-0"]
[Round "10"]
[TimeControl "180+1"]
[Date "2023.08.08"]
[WhiteClock "0:01:48"]
[BlackClock "0:00:19"]
[Board "39"]

1. d4 {[%clk 0:03:00]}  Nf6 {[%clk 0:02:50]} 2. c4 {[%clk 0:03:01]}  d6 {[%clk 0:02:45]} 3. Nf3 {[%clk 0:03:00]}  g6 {[%clk 0:02:45]} 4. g3 {[%clk 0:03:00]}  Bg7 {[%clk 0:02:45]} 5. Bg2 {[%clk 0:03:01]}  O-O {[%clk 0:02:45]} 6. Nc3 {[%clk 0:03:01]}  Nc6 {[%clk 0:02:44]} 7. O-O {[%clk 0:03:00]}  e5 {[%clk 0:02:40]} 8. dxe5 {[%clk 0:02:59]}  dxe5 {[%clk 0:02:38]} 9. Bg5 {[%clk 0:02:57]}  Be6 {[%clk 0:02:32]} 10. Qa4 {[%clk 0:02:56]}  Qc8 {[%clk 0:02:22]} 11. Nd2 {[%clk 0:02:53]}  Nd7 {[%clk 0:02:17]} 12. Bxc6 {[%clk 0:02:46]}  bxc6 {[%clk 0:02:14]} 13. Qxc6 {[%clk 0:02:46]}  Rb8 {[%clk 0:02:09]} 14. b3 {[%clk 0:02:45]}  Rb6 {[%clk 0:01:51]} 15. Qg2 {[%clk 0:02:37]}  f5 {[%clk 0:01:48]} 16. Nd5 {[%clk 0:02:31]}  Bxd5 {[%clk 0:01:37]} 17. Qxd5+ {[%clk 0:02:31]}  Kh8 {[%clk 0:01:38]} 18. c5 {[%clk 0:02:31]}  Rb5 {[%clk 0:01:32]} 19. Rac1 {[%clk 0:02:29]}  c6 {[%clk 0:01:32]} 20. Qd6 {[%clk 0:02:28]}  h6 {[%clk 0:01:31]} 21. Be7 {[%clk 0:02:26]}  Rf7 {[%clk 0:01:25]} 22. Nf3 {[%clk 0:02:11]}  g5 {[%clk 0:01:10]} 23. Rfd1 {[%clk 0:02:10]}  Rb7 {[%clk 0:01:06]} 24. Qe6 {[%clk 0:02:00]}  Kg8 {[%clk 0:00:30]} 25. Bd6 {[%clk 0:01:49]}  e4 {[%clk 0:00:28]} 26. Ne5 {[%clk 0:01:49]}  Bxe5 {[%clk 0:00:23]} 27. Bxe5 {[%clk 0:01:49]}  Qf8 {[%clk 0:00:19]} 28. Qg6+ {[%clk 0:01:48]} 1-0


[Site "https://www.chess.com"]

[Event "Titled Tuesday Blitz August 08 Late 2023"]
[White "Akobian, Varuzhan"]
[Black "Ansh M Shah"]
[WhiteFideId "13300580"]
[BlackFideId "25033379"]
[WhiteElo "2717"]
[BlackElo "2526"]
[Result "1-0"]
[Round "10"]
[TimeControl "180+1"]
[Date "2023.08.08"]
[WhiteClock "0:00:08"]
[BlackClock "0:00:02"]
[Board "40"]

1. d4 {[%clk 0:03:00]}  Nf6 {[%clk 0:02:59]} 2. c4 {[%clk 0:03:00]}  e6 {[%clk 0:03:00]} 3. Nc3 {[%clk 0:02:59]}  c5 {[%clk 0:03:00]} 4. d5 {[%clk 0:02:59]}  exd5 {[%clk 0:03:01]} 5. cxd5 {[%clk 0:02:59]}  d6 {[%clk 0:03:02]} 6. Nf3 {[%clk 0:02:59]}  g6 {[%clk 0:03:01]} 7. h3 {[%clk 0:02:59]}  Bg7 {[%clk 0:03:01]} 8. e4 {[%clk 0:02:59]}  O-O {[%clk 0:03:01]} 9. Bd3 {[%clk 0:03:00]}  Re8 {[%clk 0:03:02]} 10. O-O {[%clk 0:02:59]}  b5 {[%clk 0:03:01]} 11. Bxb5 {[%clk 0:02:59]}  Bd7 {[%clk 0:02:53]} 12. Bd3 {[%clk 0:02:56]}  c4 {[%clk 0:02:49]} 13. Bc2 {[%clk 0:02:56]}  Na6 {[%clk 0:02:48]} 14. Re1 {[%clk 0:02:55]}  Nc5 {[%clk 0:02:48]} 15. Bf4 {[%clk 0:02:55]}  Bc8 {[%clk 0:02:45]} 16. Nd4 {[%clk 0:02:48]}  Bb7 {[%clk 0:02:42]} 17. Qd2 {[%clk 0:02:43]}  a6 {[%clk 0:02:39]} 18. Rad1 {[%clk 0:02:42]}  Rc8 {[%clk 0:02:38]} 19. f3 {[%clk 0:02:15]}  Nh5 {[%clk 0:02:29]} 20. Be3 {[%clk 0:02:15]}  Be5 {[%clk 0:02:23]} 21. Na4 {[%clk 0:02:05]}  Qf6 {[%clk 0:02:15]} 22. Ne2 {[%clk 0:01:41]}  Nxa4 {[%clk 0:01:35]} 23. Bxa4 {[%clk 0:01:40]}  Red8 {[%clk 0:01:35]} 24. Bd4 {[%clk 0:01:39]}  Rc5 {[%clk 0:01:14]} 25. Bxe5 {[%clk 0:01:35]}  dxe5 {[%clk 0:01:06]} 26. Rc1 {[%clk 0:01:28]}  Rdc8 {[%clk 0:00:51]} 27. Rc3 {[%clk 0:01:19]}  Qb6 {[%clk 0:00:45]} 28. Kh2 {[%clk 0:01:15]}  a5 {[%clk 0:00:32]} 29. Rec1 {[%clk 0:01:12]}  Ba6 {[%clk 0:00:32]} 30. Bc6 {[%clk 0:01:11]}  Qd8 {[%clk 0:00:29]} 31. Qe3 {[%clk 0:01:10]}  Qd6 {[%clk 0:00:28]} 32. b3 {[%clk 0:01:04]}  Bb5 {[%clk 0:00:18]} 33. Bxb5 {[%clk 0:01:01]}  Rxb5 {[%clk 0:00:18]} 34. Rxc4 {[%clk 0:01:02]}  Rxc4 {[%clk 0:00:15]} 35. Rxc4 {[%clk 0:01:00]}  Kg7 {[%clk 0:00:12]} 36. Qc3 {[%clk 0:00:58]}  Qf6 {[%clk 0:00:09]} 37. Rc5 {[%clk 0:00:53]}  Rxc5 {[%clk 0:00:06]} 38. Qxc5 {[%clk 0:00:52]}  Qg5 {[%clk 0:00:05]} 39. Qc1 {[%clk 0:00:49]}  Qh4 {[%clk 0:00:03]} 40. g3 {[%clk 0:00:44]}  Qd8 {[%clk 0:00:02]} 41. Qc3 {[%clk 0:00:40]}  Qd7 {[%clk 0:00:02]} 42. Qxe5+ {[%clk 0:00:39]}  Kg8 {[%clk 0:00:02]} 43. g4 {[%clk 0:00:38]}  Ng7 {[%clk 0:00:02]} 44. Nd4 {[%clk 0:00:37]}  Qa7 {[%clk 0:00:01]} 45. Kg2 {[%clk 0:00:35]}  h5 {[%clk 0:00:02]} 46. g5 {[%clk 0:00:32]}  Kh7 {[%clk 0:00:01]} 47. d6 {[%clk 0:00:32]}  h4 {[%clk 0:00:02]} 48. Qd5 {[%clk 0:00:30]}  Nh5 {[%clk 0:00:02]} 49. Kf1 {[%clk 0:00:13]}  Nf4 {[%clk 0:00:02]} 50. Qe5 {[%clk 0:00:12]}  Qa6+ {[%clk 0:00:03]} 51. Nb5 {[%clk 0:00:11]}  Qc6 {[%clk 0:00:02]} 52. Qxf4 {[%clk 0:00:11]}  Qxb5+ {[%clk 0:00:02]} 53. Kf2 {[%clk 0:00:11]}  Qc5+ {[%clk 0:00:03]} 54. Ke2 {[%clk 0:00:09]}  Qb5+ {[%clk 0:00:03]} 55. Kd2 {[%clk 0:00:09]}  Qb4+ {[%clk 0:00:03]} 56. Kc2 {[%clk 0:00:09]}  Qc5+ {[%clk 0:00:03]} 57. Kd3 {[%clk 0:00:09]}  Qb5+ {[%clk 0:00:03]} 58. Kd4 {[%clk 0:00:09]}  Qb4+ {[%clk 0:00:03]} 59. Ke5 {[%clk 0:00:09]}  Qc5+ {[%clk 0:00:04]} 60. Kf6 {[%clk 0:00:08]}  Qd4+ {[%clk 0:00:04]} 61. Qe5 {[%clk 0:00:08]}  Qa7 {[%clk 0:00:02]} 62. Qe7 {[%clk 0:00:07]}  Qd4+ {[%clk 0:00:02]} 63. Kxf7 {[%clk 0:00:08]}  Qf2 {[%clk 0:00:01]} 64. Kf8+ {[%clk 0:00:07]}  Kh8 {[%clk 0:00:02]} 65. Qg7# {[%clk 0:00:08]} 1-0


[Site "https://www.chess.com"]

[Event "Titled Tuesday Blitz August 08 Late 2023"]
[White "Garakov, Mikhael"]
[Black "Ambartsumova, Karina"]
[WhiteFideId "4169034"]
[BlackFideId "4166299"]
[WhiteElo "2493"]
[BlackElo "2584"]
[Result "0-1"]
[Round "10"]
[TimeControl "180+1"]
[Date "2023.08.08"]
[WhiteClock "0:00:05"]
[BlackClock "0:00:06"]
[Board "44"]

1. e4 {[%clk 0:02:53]}  e5 {[%clk 0:02:59]} 2. Nf3 {[%clk 0:02:53]}  Nc6 {[%clk 0:03:00]} 3. d4 {[%clk 0:02:52]}  exd4 {[%clk 0:02:59]} 4. Nxd4 {[%clk 0:02:52]}  Bc5 {[%clk 0:02:59]} 5. Be3 {[%clk 0:02:52]}  Qf6 {[%clk 0:02:58]} 6. Nb5 {[%clk 0:02:51]}  Bxe3 {[%clk 0:02:53]} 7. fxe3 {[%clk 0:02:52]}  Qh4+ {[%clk 0:02:24]} 8. g3 {[%clk 0:02:52]}  Qxe4 {[%clk 0:02:18]} 9. Nxc7+ {[%clk 0:02:50]}  Kd8 {[%clk 0:02:17]} 10. Nxa8 {[%clk 0:02:51]}  Qxh1 {[%clk 0:02:14]} 11. Qd6 {[%clk 0:02:50]}  Nge7 {[%clk 0:02:00]} 12. Nd2 {[%clk 0:02:40]}  Qd5 {[%clk 0:01:42]} 13. Qc7+ {[%clk 0:02:37]}  Ke8 {[%clk 0:01:43]} 14. Nc4 {[%clk 0:02:04]}  Kf8 {[%clk 0:01:15]} 15. Rd1 {[%clk 0:01:47]}  Qc5 {[%clk 0:00:58]} 16. c3 {[%clk 0:01:34]}  g6 {[%clk 0:00:56]} 17. b4 {[%clk 0:01:34]}  Qg5 {[%clk 0:00:56]} 18. a4 {[%clk 0:01:16]}  Kg7 {[%clk 0:00:47]} 19. b5 {[%clk 0:01:16]}  Nd8 {[%clk 0:00:46]} 20. h4 {[%clk 0:00:43]}  Qf6 {[%clk 0:00:45]} 21. Nd6 {[%clk 0:00:43]}  Ne6 {[%clk 0:00:42]} 22. Qc4 {[%clk 0:00:37]}  Nf5 {[%clk 0:00:36]} 23. Nxf5+ {[%clk 0:00:35]}  Qxf5 {[%clk 0:00:37]} 24. Rd5 {[%clk 0:00:28]}  Qf3 {[%clk 0:00:36]} 25. Be2 {[%clk 0:00:20]}  Qxe3 {[%clk 0:00:32]} 26. Rd3 {[%clk 0:00:21]}  Qg1+ {[%clk 0:00:31]} 27. Kd2 {[%clk 0:00:21]}  d5 {[%clk 0:00:31]} 28. Qxd5 {[%clk 0:00:20]}  Rd8 {[%clk 0:00:17]} 29. Qe5+ {[%clk 0:00:20]}  f6 {[%clk 0:00:18]} 30. Qb8 {[%clk 0:00:16]}  Rxd3+ {[%clk 0:00:17]} 31. Bxd3 {[%clk 0:00:17]}  Qf2+ {[%clk 0:00:16]} 32. Be2 {[%clk 0:00:17]}  Bd7 {[%clk 0:00:14]} 33. Qxb7 {[%clk 0:00:17]}  Nc5 {[%clk 0:00:13]} 34. Qd5 {[%clk 0:00:16]}  Be6 {[%clk 0:00:12]} 35. Qd8 {[%clk 0:00:16]}  Ne4+ {[%clk 0:00:11]} 36. Kd3 {[%clk 0:00:14]}  Nc5+ {[%clk 0:00:11]} 37. Kd2 {[%clk 0:00:14]}  Ne4+ {[%clk 0:00:10]} 38. Kd3 {[%clk 0:00:14]}  Qf5 {[%clk 0:00:05]} 39. Qc7+ {[%clk 0:00:13]}  Bf7 {[%clk 0:00:05]} 40. Qf4 {[%clk 0:00:12]}  Nc5+ {[%clk 0:00:05]} 41. Kd2 {[%clk 0:00:12]}  Nb3+ {[%clk 0:00:05]} 42. Ke3 {[%clk 0:00:12]}  Qc5+ {[%clk 0:00:05]} 43. Kf3 {[%clk 0:00:11]}  Bd5+ {[%clk 0:00:05]} 44. Kg4 {[%clk 0:00:11]}  Be6+ {[%clk 0:00:05]} 45. Kf3 {[%clk 0:00:11]}  Bd5+ {[%clk 0:00:06]} 46. Kg4 {[%clk 0:00:12]}  Bxa8 {[%clk 0:00:06]} 47. Kh3 {[%clk 0:00:12]}  Qc8+ {[%clk 0:00:06]} 48. Kh2 {[%clk 0:00:12]}  Qb7 {[%clk 0:00:06]} 49. Kh3 {[%clk 0:00:10]}  Nc5 {[%clk 0:00:06]} 50. Bc4 {[%clk 0:00:08]}  Ne4 {[%clk 0:00:06]} 51. Qf3 {[%clk 0:00:07]}  Ng5+ {[%clk 0:00:05]} 52. hxg5 {[%clk 0:00:05]}  Qxf3 {[%clk 0:00:06]} 0-1


[Site "https://www.chess.com"]

[Event "Titled Tuesday Blitz August 08 Late 2023"]
[White "Sadilek, Peter"]
[Black "Krishnan, Varun"]
[WhiteFideId "1616439"]
[BlackFideId "5054508"]
[WhiteElo "2488"]
[BlackElo "2579"]
[Result "1-0"]
[Round "10"]
[TimeControl "180+1"]
[Date "2023.08.08"]
[WhiteClock "0:00:59"]
[BlackClock "0:01:30"]
[Board "45"]

1. d4 {[%clk 0:02:56]}  a6 {[%clk 0:02:53]} 2. e4 {[%clk 0:02:56]}  e6 {[%clk 0:02:52]} 3. Nf3 {[%clk 0:02:55]}  d5 {[%clk 0:02:52]} 4. Nbd2 {[%clk 0:02:47]}  dxe4 {[%clk 0:02:47]} 5. Nxe4 {[%clk 0:02:47]}  Nf6 {[%clk 0:02:48]} 6. Nxf6+ {[%clk 0:02:47]}  gxf6 {[%clk 0:02:47]} 7. Be3 {[%clk 0:02:39]}  Nc6 {[%clk 0:02:35]} 8. g3 {[%clk 0:02:31]}  e5 {[%clk 0:02:32]} 9. Bg2 {[%clk 0:02:30]}  Be6 {[%clk 0:02:22]} 10. O-O {[%clk 0:02:22]}  Qd7 {[%clk 0:02:21]} 11. dxe5 {[%clk 0:02:18]}  fxe5 {[%clk 0:02:20]} 12. Qxd7+ {[%clk 0:02:13]}  Bxd7 {[%clk 0:02:20]} 13. Rfe1 {[%clk 0:02:03]}  O-O-O {[%clk 0:02:17]} 14. Bg5 {[%clk 0:02:01]}  Re8 {[%clk 0:02:17]} 15. Bf6 {[%clk 0:01:59]}  Rg8 {[%clk 0:02:17]} 16. Nxe5 {[%clk 0:01:54]}  Nxe5 {[%clk 0:02:16]} 17. Bxe5 {[%clk 0:01:52]}  Bc5 {[%clk 0:02:16]} 18. Bf4 {[%clk 0:01:42]}  Rxe1+ {[%clk 0:02:13]} 19. Rxe1 {[%clk 0:01:43]}  Re8 {[%clk 0:02:12]} 20. Rxe8+ {[%clk 0:01:44]}  Bxe8 {[%clk 0:02:13]} 21. Be4 {[%clk 0:01:44]}  h5 {[%clk 0:02:12]} 22. Bf5+ {[%clk 0:01:43]}  Bd7 {[%clk 0:02:10]} 23. Bxd7+ {[%clk 0:01:41]}  Kxd7 {[%clk 0:02:11]} 24. Kg2 {[%clk 0:01:37]}  b5 {[%clk 0:02:10]} 25. Kf3 {[%clk 0:01:33]}  Bd4 {[%clk 0:02:09]} 26. b3 {[%clk 0:01:29]}  c5 {[%clk 0:02:08]} 27. Be3 {[%clk 0:01:30]}  Bxe3 {[%clk 0:02:03]} 28. Kxe3 {[%clk 0:01:30]}  Ke6 {[%clk 0:02:03]} 29. Ke4 {[%clk 0:01:25]}  a5 {[%clk 0:02:01]} 30. c4 {[%clk 0:01:25]}  bxc4 {[%clk 0:01:53]} 31. bxc4 {[%clk 0:01:26]}  f5+ {[%clk 0:01:53]} 32. Kf4 {[%clk 0:01:22]}  Kf6 {[%clk 0:01:53]} 33. h4 {[%clk 0:00:59]}  a4 {[%clk 0:01:52]} 34. a3 {[%clk 0:00:59]}  Ke6 {[%clk 0:01:32]} 35. Kg5 {[%clk 0:00:59]}  Ke5 {[%clk 0:01:33]} 36. Kxh5 {[%clk 0:00:59]}  Kd4 {[%clk 0:01:33]} 37. Kg6 {[%clk 0:00:56]}  Kxc4 {[%clk 0:01:34]} 38. h5 {[%clk 0:00:57]}  Kb3 {[%clk 0:01:33]} 39. h6 {[%clk 0:00:57]}  c4 {[%clk 0:01:33]} 40. h7 {[%clk 0:00:58]}  c3 {[%clk 0:01:33]} 41. h8=Q {[%clk 0:00:59]}  c2 {[%clk 0:01:30]} 42. Qa1 {[%clk 0:00:59]} 1-0


[Site "https://www.chess.com"]

[Event "Titled Tuesday Blitz August 08 Late 2023"]
[White "Cheer_Down"]
[Black "Chen, Max"]
[BlackFideId "2622440"]
[WhiteElo "2487"]
[BlackElo "2578"]
[Result "1-0"]
[Round "10"]
[TimeControl "180+1"]
[Date "2023.08.08"]
[WhiteClock "0:00:17"]
[BlackClock "0:00:00"]
[Board "46"]

1. e4 {[%clk 0:03:00]}  e5 {[%clk 0:02:55]} 2. Nf3 {[%clk 0:03:00]}  Nc6 {[%clk 0:02:55]} 3. Bc4 {[%clk 0:03:00]}  h6 {[%clk 0:02:50]} 4. d4 {[%clk 0:02:55]}  exd4 {[%clk 0:02:18]} 5. Nxd4 {[%clk 0:02:55]}  d6 {[%clk 0:02:08]} 6. O-O {[%clk 0:02:33]}  Nf6 {[%clk 0:02:01]} 7. Nc3 {[%clk 0:02:32]}  g6 {[%clk 0:01:52]} 8. Nxc6 {[%clk 0:02:27]}  bxc6 {[%clk 0:01:51]} 9. e5 {[%clk 0:02:27]}  Nd7 {[%clk 0:01:22]} 10. Re1 {[%clk 0:01:53]}  dxe5 {[%clk 0:01:07]} 11. Qf3 {[%clk 0:01:50]}  Qf6 {[%clk 0:00:54]} 12. Bf4 {[%clk 0:01:34]}  Bg7 {[%clk 0:00:41]} 13. Bxe5 {[%clk 0:01:11]}  Nxe5 {[%clk 0:00:30]} 14. Rxe5+ {[%clk 0:01:09]}  Kf8 {[%clk 0:00:18]} 15. Rae1 {[%clk 0:01:01]}  Bf5 {[%clk 0:00:11]} 16. Re7 {[%clk 0:00:40]}  Be6 {[%clk 0:00:10]} 17. Qxc6 {[%clk 0:00:20]}  Rd8 {[%clk 0:00:04]} 18. Rxc7 {[%clk 0:00:19]}  Bxc4 {[%clk 0:00:02]} 19. Qxc4 {[%clk 0:00:19]}  Kg8 {[%clk 0:00:00]} 20. Nd5 {[%clk 0:00:17]} 1-0


[Site "https://www.chess.com"]

[Event "Titled Tuesday Blitz August 08 Late 2023"]
[White "Vovk, Orest"]
[Black "Deng, Henry"]
[WhiteFideId "14113490"]
[BlackFideId "30965454"]
[WhiteElo "2479"]
[BlackElo "2574"]
[Result "0-1"]
[Round "10"]
[TimeControl "180+1"]
[Date "2023.08.08"]
[WhiteClock "0:00:00"]
[BlackClock "0:00:39"]
[Board "48"]

1. g4 {[%clk 0:03:00]}  d5 {[%clk 0:02:57]} 2. h3 {[%clk 0:03:00]}  h5 {[%clk 0:02:57]} 3. g5 {[%clk 0:02:57]}  e5 {[%clk 0:02:56]} 4. Bg2 {[%clk 0:02:54]}  c6 {[%clk 0:02:52]} 5. d4 {[%clk 0:02:54]}  Bd6 {[%clk 0:02:49]} 6. c4 {[%clk 0:02:55]}  dxc4 {[%clk 0:02:45]} 7. dxe5 {[%clk 0:02:54]}  Bxe5 {[%clk 0:02:45]} 8. Qxd8+ {[%clk 0:02:53]}  Kxd8 {[%clk 0:02:46]} 9. Nf3 {[%clk 0:02:53]}  Bd6 {[%clk 0:02:44]} 10. Nbd2 {[%clk 0:02:50]}  b5 {[%clk 0:02:43]} 11. Nd4 {[%clk 0:02:48]}  a6 {[%clk 0:02:23]} 12. Nxc6+ {[%clk 0:02:47]}  Kc7 {[%clk 0:02:24]} 13. Nxb8 {[%clk 0:01:57]}  Rxb8 {[%clk 0:02:25]} 14. O-O {[%clk 0:01:55]}  h4 {[%clk 0:02:19]} 15. a4 {[%clk 0:01:53]}  Ne7 {[%clk 0:02:15]} 16. axb5 {[%clk 0:01:52]}  axb5 {[%clk 0:02:15]} 17. Ne4 {[%clk 0:01:52]}  Be5 {[%clk 0:02:05]} 18. Ra7+ {[%clk 0:01:41]}  Rb7 {[%clk 0:02:05]} 19. Ra8 {[%clk 0:01:32]}  Nc6 {[%clk 0:01:40]} 20. Nc5 {[%clk 0:01:23]}  Rb8 {[%clk 0:01:37]} 21. Rxb8 {[%clk 0:00:56]}  Nxb8 {[%clk 0:01:35]} 22. b3 {[%clk 0:00:32]}  Nd7 {[%clk 0:01:17]} 23. Nxd7 {[%clk 0:00:29]}  Bxd7 {[%clk 0:01:18]} 24. bxc4 {[%clk 0:00:27]}  bxc4 {[%clk 0:01:18]} 25. Bd2 {[%clk 0:00:25]}  Be6 {[%clk 0:01:16]} 26. Ba5+ {[%clk 0:00:23]}  Kc8 {[%clk 0:01:05]} 27. e3 {[%clk 0:00:11]}  g6 {[%clk 0:01:01]} 28. f4 {[%clk 0:00:09]}  Bc7 {[%clk 0:00:56]} 29. Bc3 {[%clk 0:00:06]}  Rd8 {[%clk 0:00:55]} 30. Ra1 {[%clk 0:00:06]}  Bb6 {[%clk 0:00:50]} 31. Bf6 {[%clk 0:00:02]}  Rd3 {[%clk 0:00:46]} 32. Ra8+ {[%clk 0:00:01]}  Kd7 {[%clk 0:00:45]} 33. Kf2 {[%clk 0:00:02]}  Bxe3+ {[%clk 0:00:45]} 34. Ke2 {[%clk 0:00:02]}  Bb6 {[%clk 0:00:45]} 35. Rb8 {[%clk 0:00:02]}  Bc7 {[%clk 0:00:45]} 36. Rb7 {[%clk 0:00:02]}  Kc8 {[%clk 0:00:39]} 37. Ra7 {[%clk 0:00:01]}  Rc3 {[%clk 0:00:40]} 38. Ra8+ {[%clk 0:00:01]}  Kd7 {[%clk 0:00:39]} 39. Ra2 {[%clk 0:00:02]}  Rb3 {[%clk 0:00:39]} 40. Rd2+ {[%clk 0:00:01]}  Kc8 {[%clk 0:00:40]} 41. Rc2 {[%clk 0:00:02]}  Rg3 {[%clk 0:00:39]} 42. Be4 {[%clk 0:00:02]}  Rxh3 {[%clk 0:00:39]} 43. Rc1 {[%clk 0:00:01]}  Rh2+ {[%clk 0:00:39]} 44. Ke3 {[%clk 0:00:02]}  Rh3+ {[%clk 0:00:38]} 45. Kf2 {[%clk 0:00:02]}  Bxf4 {[%clk 0:00:39]} 46. Ra1 {[%clk 0:00:01]}  Rh2+ {[%clk 0:00:39]} 47. Kf3 {[%clk 0:00:01]}  Bb8 {[%clk 0:00:38]} 48. Ra8 {[%clk 0:00:02]}  Rh3+ {[%clk 0:00:38]} 49. Ke2 {[%clk 0:00:01]}  Rb3 {[%clk 0:00:38]} 50. Kd2 {[%clk 0:00:02]}  h3 {[%clk 0:00:39]} 51. Kc2 {[%clk 0:00:02]}  h2 {[%clk 0:00:39]} 52. Ra1 {[%clk 0:00:02]}  Re3 {[%clk 0:00:39]} 53. Bc6 {[%clk 0:00:00]}  Bf5+ {[%clk 0:00:39]} 0-1


[Site "https://www.chess.com"]

[Event "Titled Tuesday Blitz August 08 Late 2023"]
[White "Przybylski, Wojciech"]
[Black "Omariev, Maksim"]
[WhiteFideId "1117599"]
[BlackFideId "4193423"]
[WhiteElo "2567"]
[BlackElo "2464"]
[Result "1-0"]
[Round "10"]
[TimeControl "180+1"]
[Date "2023.08.08"]
[WhiteClock "0:00:04"]
[BlackClock "0:00:03"]
[Board "49"]

1. e4 {[%clk 0:03:00]}  c5 {[%clk 0:02:57]} 2. Nf3 {[%clk 0:02:55]}  d6 {[%clk 0:02:57]} 3. Bc4 {[%clk 0:02:54]}  e6 {[%clk 0:02:57]} 4. d3 {[%clk 0:02:53]}  a6 {[%clk 0:02:57]} 5. a4 {[%clk 0:02:53]}  Nc6 {[%clk 0:02:57]} 6. O-O {[%clk 0:02:52]}  Nf6 {[%clk 0:02:57]} 7. Nc3 {[%clk 0:02:51]}  Be7 {[%clk 0:02:57]} 8. Re1 {[%clk 0:02:51]}  O-O {[%clk 0:02:58]} 9. Bd2 {[%clk 0:02:48]}  b6 {[%clk 0:02:56]} 10. h3 {[%clk 0:02:47]}  Bb7 {[%clk 0:02:56]} 11. Bb3 {[%clk 0:02:41]}  Re8 {[%clk 0:02:53]} 12. Ne2 {[%clk 0:02:39]}  b5 {[%clk 0:02:46]} 13. c3 {[%clk 0:02:37]}  Qc7 {[%clk 0:02:43]} 14. Ng3 {[%clk 0:02:32]}  Rad8 {[%clk 0:02:21]} 15. axb5 {[%clk 0:02:26]}  axb5 {[%clk 0:02:21]} 16. d4 {[%clk 0:02:26]}  Na5 {[%clk 0:02:11]} 17. Bc2 {[%clk 0:02:26]}  Nc4 {[%clk 0:02:12]} 18. Bc1 {[%clk 0:02:26]}  cxd4 {[%clk 0:02:08]} 19. cxd4 {[%clk 0:02:18]}  d5 {[%clk 0:02:07]} 20. e5 {[%clk 0:02:12]}  Ne4 {[%clk 0:02:08]} 21. Nxe4 {[%clk 0:02:05]}  dxe4 {[%clk 0:02:08]} 22. Bxe4 {[%clk 0:02:04]}  Bb4 {[%clk 0:01:44]} 23. Re2 {[%clk 0:01:59]}  Bxe4 {[%clk 0:01:33]} 24. Rxe4 {[%clk 0:01:59]}  Rd5 {[%clk 0:01:07]} 25. Qc2 {[%clk 0:01:57]}  Qd8 {[%clk 0:00:53]} 26. Rh4 {[%clk 0:01:52]}  g6 {[%clk 0:00:48]} 27. b3 {[%clk 0:01:33]}  Nb6 {[%clk 0:00:33]} 28. Bg5 {[%clk 0:01:12]}  Be7 {[%clk 0:00:32]} 29. Bxe7 {[%clk 0:01:12]}  Qxe7 {[%clk 0:00:33]} 30. Qc6 {[%clk 0:01:12]}  Rb8 {[%clk 0:00:26]} 31. Rf4 {[%clk 0:00:56]}  Rd7 {[%clk 0:00:23]} 32. Ra6 {[%clk 0:00:48]}  Nd5 {[%clk 0:00:19]} 33. Re4 {[%clk 0:00:38]}  Nb4 {[%clk 0:00:20]} 34. Qc1 {[%clk 0:00:16]}  Nxa6 {[%clk 0:00:20]} 35. Qh6 {[%clk 0:00:17]}  Qf8 {[%clk 0:00:19]} 36. Qg5 {[%clk 0:00:17]}  Nb4 {[%clk 0:00:18]} 37. Rh4 {[%clk 0:00:16]}  Nd5 {[%clk 0:00:18]} 38. Qd2 {[%clk 0:00:16]}  Rc8 {[%clk 0:00:18]} 39. Ng5 {[%clk 0:00:16]}  h6 {[%clk 0:00:16]} 40. Ne4 {[%clk 0:00:16]}  g5 {[%clk 0:00:12]} 41. Rg4 {[%clk 0:00:15]}  Qg7 {[%clk 0:00:04]} 42. h4 {[%clk 0:00:12]}  Kf8 {[%clk 0:00:04]} 43. hxg5 {[%clk 0:00:12]}  h5 {[%clk 0:00:05]} 44. Rh4 {[%clk 0:00:12]}  Qg6 {[%clk 0:00:05]} 45. Ng3 {[%clk 0:00:12]}  Rc3 {[%clk 0:00:04]} 46. Nxh5 {[%clk 0:00:11]}  Rxb3 {[%clk 0:00:04]} 47. Nf6 {[%clk 0:00:10]}  Ke7 {[%clk 0:00:04]} 48. Rh8 {[%clk 0:00:09]}  Rd8 {[%clk 0:00:04]} 49. Rh6 {[%clk 0:00:06]}  Qf5 {[%clk 0:00:03]} 50. Rh4 {[%clk 0:00:04]}  Rb1+ {[%clk 0:00:03]} 51. Kh2 {[%clk 0:00:04]}  Qxf2 {[%clk 0:00:03]} 52. Qxf2 {[%clk 0:00:04]}  b4 {[%clk 0:00:03]} 53. Nxd5+ {[%clk 0:00:04]}  Rxd5 {[%clk 0:00:02]} 54. Rh7 {[%clk 0:00:04]}  Kd7 {[%clk 0:00:02]} 55. Qxf7+ {[%clk 0:00:04]}  Kc6 {[%clk 0:00:03]} 56. Qb7# {[%clk 0:00:04]} 1-0


[Site "https://www.chess.com"]